Cogmind - Beta 15 *** ADVENTURER MODE // 2025.06.19 @ 01:00:58 Player: NED1124 Result: Destroyed by Y-45 Defender with Beam Rifle Performance ------------- Evolutions (2) 1000 Regions Visited (4) 800 Robots Destroyed (13) 65 Value Destroyed (516) 516 Prototype IDs (0) 0 Alien Tech Used (0) 0 Bonus (0) 0 TOTAL SCORE: 2381 Bonus ------- None Cogmind --------- Core Integrity 0/550 Matter 290/300 Energy 100/100 System Corruption 8% Temperature Cool (9) Movement Core (50) Location -8/Materials Parts ------- > --- POWER (2) -------- (None) > --- PROPULSION (4) --- (None) > --- UTILITY (3) ------ (None) > --- WEAPON (2) ------- (None) > --- INVENTORY (5) ---- Aluminum Leg Scrap Suit Heat Sink High-capacity Storage Unit Peak State ------------ > --- POWER ------------ Ion Engine Ion Engine > --- PROPULSION ------- Aluminum Leg Aluminum Leg Aluminum Leg Aluminum Leg > --- UTILITY ---------- Heat Sink Small Storage Unit ECM Suite > --- WEAPON ----------- Small Laser Heavy Assault Rifle > --- INVENTORY -------- Aluminum Leg Scrap Suit Heat Sink Rocket Launcher [Rating: 13] Favorites ----------- Power Ion Engine Engine Ion Engine Propulsion Aluminum Leg Leg Aluminum Leg Utility Small Storage Unit Device ECM Suite Storage Small Storage Unit Weapon Light Assault Rifle Energy Gun Small Laser Ballistic Gun Light Assault Rifle Launcher Rocket Launcher Build | -11 -10 -10 -9 -8 ------- Run | Yrd Mat Min Mat Mat Slots Evolved 4 | . . . 2 2 Power 1 | . . . . 1 Propulsion 2 | . . . 1 1 Utility 1 | . . . 1 . Weapon . | . . . . . Parts Attached 19 | 6 1 7 2 3 Power 3 | 1 . 1 . 1 Engine 3 | 1 . 1 . 1 Core . | . . . . . Reactor . | . . . . . Propulsion 6 | 2 . 4 . . Treads . | . . . . . Leg 6 | 2 . 4 . . Wheel . | . . . . . Hover . | . . . . . Flight . | . . . . . Utility 3 | 1 1 . 1 . Device 2 | . 1 . 1 . Storage 1 | 1 . . . . Processor . | . . . . . Hackware . | . . . . . Protection . | . . . . . Artifact . | . . . . . Weapon 7 | 2 . 2 1 2 Energy Gun 3 | 1 . 2 . . Energy Cannon . | . . . . . Ballistic Gun 2 | 1 . . 1 . Ballistic Cannon . | . . . . . Launcher 2 | . . . . 2 Special Weapon . | . . . . . Impact Weapon . | . . . . . Slashing Weapon . | . . . . . Piercing Weapon . | . . . . . Special Melee Weapon . | . . . . . Unidentified Prototypes . | . . . . . Parts Lost 19 | . . 5 1 13 Power 3 | . . 1 . 2 Propulsion 6 | . . 2 . 4 Utility 3 | . . . . 3 Weapon 7 | . . 2 1 4 Highest Loss Streak 10 | . . 3 1 10 To Critical Strikes 1 | . . . . 1 Average Backups 4 | 1 3 5 5 4 Power . | . 1 . 1 . Propulsion 1 | . 1 2 2 1 Utility 1 | . . 1 1 2 Weapon . | . 1 . 1 . Tool/Special . | . . . . . Unused Backups 4 | . . . . 4 Power . | . . . . . Propulsion 1 | . . . . 1 Utility 3 | . . . . 3 Weapon . | . . . . . Tool/Special . | . . . . . Average Slot Usage (%) 85 | . 91 97 98 52 Engine 12 | . 14 13 11 10 Leg 25 | . 28 27 33 16 Device 12 | . 6 14 21 9 Storage 11 | . 14 14 11 6 Energy Gun 10 | . 14 13 11 4 Ballistic Gun 11 | . 14 14 9 4 Peak Build Rating 13 | 6 7 8 11 13 Average Rating 7 | 4 6 7 10 7 On Entrance 6 | . 6 7 8 11 Naked Turns 88 | . . . . 88 Heaviest Build 22 | 13 15 15 17 22 Greatest Support 40 | 20 20 20 30 40 Greatest Overweight (x) 3 | 3 . 1 . 3 Average Overweight (x) . | . . . . . Largest Inventory Capacity 8 | 8 8 8 8 8 Average Capacity 7 | 7 8 8 8 7 Most Carried 8 | 2 4 8 7 7 Average Carried 5 | 1 3 6 6 5 Final Capacity 8 | 8 8 8 8 5 Final Carried 8 | 2 4 8 7 5 Class Distribution -------------------- 74% | Mutant 25% | Scavenger-Mutant Dominant Class ---------------- Mutant | -10/Materials Mutant | -10/Mines Scavenger-Mutant | -9/Materials Mutant | -8/Materials Resources | -11 -10 -10 -9 -8 ----------- Run | Yrd Mat Min Mat Mat Matter Collected 482 | 246 21 86 16 113 Remotely . | . . . . . Salvage Created 562 | . 91 172 51 248 Parts 26 | . 6 7 4 9 Haulers Intercepted . | . . . . . Recyclers Shooed 1 | . . . . 1 Parts Field Recycled . | . . . . . Retrieved Matter . | . . . . . Parts Self-Destructed . | . . . . . Prevented . | . . . . . Kills | -11 -10 -10 -9 -8 ------- Run | Yrd Mat Min Mat Mat Combat Hostiles Destroyed 12 | . 2 4 1 5 Guns 10 | . 2 3 1 4 AOE 1 | . . . . 1 Classes Destroyed 4 | . 1 . 1 2 Worker 1 | . . . . 1 Grunt 10 | . 2 4 . 4 Brawler 1 | . . . . 1 Sentry 1 | . . . 1 . Best Kill Streak 6 | . 2 2 1 6 Combat Bots Only 5 | . 2 2 1 5 Max Kills in Single Turn 1 | . 1 1 1 1 Gunslinging . | . . . . . Exploded 1 | . . . . 1 Melee . | . . . . . Uniques/NPCs Destroyed . | . . . . . Combat | -11 -10 -10 -9 -8 -------- Run | Yrd Mat Min Mat Mat Hostile Shots Fired 234 | . 55 56 17 106 Missed 59 | . 17 11 6 25 Hits 175 | . 38 45 11 81 Melee 5 | . . . . 5 Projectile 170 | . 38 45 11 76 Critical Strikes 7 | . . 3 . 4 Damage Taken 2180 | . 278 480 104 1318 Core 746 | . 49 117 19 561 Absorbed by Shields . | . . . . . Ignored by Resistances 610 | . 88 143 32 347 Core Remaining (%) 76 | 100 . 33 95 . Volleys Fired 63 | . 7 35 4 17 Largest 2 | . 2 2 2 2 Hottest 70 | . 70 70 63 69 Shots Fired 112 | . 14 59 6 33 Gun 107 | . 14 59 6 28 Cannon . | . . . . . Launcher 5 | . . . . 5 Special . | . . . . . Kinetic 58 | . 7 35 2 14 Thermal 49 | . 7 24 4 14 Explosive 5 | . . . . 5 Electromagnetic . | . . . . . Robot Hit Streak 39 | . 7 39 16 8 Robot Miss Streak 4 | . 1 2 2 4 Penetration Max . | . . . . . Secondary Targets 2 | . . . . 2 Max Gunslinging Chain 1 | . . . . 1 Shots Hit Robots 96 | . 13 54 4 25 Core Hits 43 | . 5 12 2 24 Critical Kills . | . . . . . Critical Parts Destroyed . | . . . . . Critical Strikes 3 | . 1 2 . . Burn 3 | . 1 2 . . Melee Attacks . | . . . . . Impact . | . . . . . Slashing . | . . . . . Piercing . | . . . . . Sneak Attacks . | . . . . . Combat Hostiles . | . . . . . Follow-up Attacks . | . . . . . Damage Inflicted 1165 | . 158 314 43 650 Guns 765 | . 137 314 43 271 Cannons . | . . . . . Explosions 299 | . . . . 299 Melee . | . . . . . Ramming 101 | . 21 . . 80 Kinetic 400 | . 49 180 10 161 Thermal 365 | . 88 134 33 110 Explosive 299 | . . . . 299 Electromagnetic . | . . . . . Impact . | . . . . . Slashing . | . . . . . Piercing . | . . . . . Highest Corruption 8 | . 1 1 . 8 Average Corruption 2 | . 1 1 . 7 Corruption Purged . | . . . . . Corruption Blocked . | . . . . . Effects 10 | . 1 5 . 4 Message Errors 1 | . 1 . . . Matter Fused 2 | . . . . 2 Heat Flow Errors 5 | . . 3 . 2 Energy Discharges 1 | . . 1 . . Data Loss (major) 1 | . . 1 . . Overload Shots . | . . . . . Overflow Damage 34 | . . . . 34 Projectiles . | . . . . . Explosions 34 | . . . . 34 Melee . | . . . . . Knockbacks . | . . . . . Impact . | . . . . . Kinetic . | . . . . . Secondary . | . . . . . Self-Inflicted Damage 241 | . . . . 241 Shots 5 | . . . . 5 Rammed 27 | . . . . 27 Targets Rammed 30 | . 3 . . 27 Kicked 3 | . 3 . . . Crushed . | . . . . . Highest Temperature 275 | . 92 275 . 198 Average Temperature 84 | . 52 102 . 40 Received Heat Transfer 1248 | . 96 417 60 675 Siege Activations . | . . . . . Martial Activations . | . . . . . Shielding Activations . | . . . . . Robots Disrupted . | . . . . . Combat Hostiles . | . . . . . Robots Corrupted . | . . . . . Combat Hostiles . | . . . . . Parts Fried . | . . . . . Impact Corruptions . | . . . . . Robots Melted 1 | . . 1 . . Combat Hostiles 1 | . . 1 . . Parts Melted . | . . . . . Heat Transferred 1153 | . 333 495 75 250 Parts Sabotaged . | . . . . . Parts Stolen . | . . . . . Parts Stripped . | . . . . . Power Chain Reactions . | . . . . . Alert | -11 -10 -10 -9 -8 ------- Run | Yrd Mat Min Mat Mat Maximum Alert Level . | . . . . . Low Security (%) 100 | 100 100 100 100 100 Level 1 . | . . . . . Level 2 . | . . . . . Level 3 . | . . . . . Level 4 . | . . . . . Level 5 . | . . . . . High Security . | . . . . . Max Security . | . . . . . Peak Influence 60 | . 40 30 31 60 Initial . | . . . . . Average 6 | . 11 4 4 9 Influence Increases 396 | . 50 100 37 209 Destroy 0b10 Robot/C 240 | . 40 80 20 100 Destroy 0b10 Robot/NC 5 | . . . . 5 Destroy Leader 60 | . 10 20 10 20 Allied During Kill 1 | . . . 1 . Successful Hack 6 | . . . 6 . Destroy Structure 24 | . . . . 24 Lose Combat Pursuer 60 | . . . . 60 Influence Decreases 356 | . 50 100 37 169 Time Decay 221 | . 50 80 31 60 Lost Part 135 | . . 20 6 109 Squads Dispatched 1 | . . . . 1 Investigation 1 | . . . . 1 Extermination . | . . . . . Reinforcement . | . . . . . Assault . | . . . . . Garrison . | . . . . . Intercept . | . . . . . Searches Triggered . | . . . . . Construction Impeded . | . . . . . Haulers Reinforced . | . . . . . Active Scanning Responses . | . . . . . Cargo Convoy Interrupts . | . . . . . Stealth | -11 -10 -10 -9 -8 --------- Run | Yrd Mat Min Mat Mat Distress Signals 3 | . 1 . 1 1 Communications Jammed . | . . . . . Distress Signals . | . . . . . Times Spotted 40 | . 17 4 7 12 Peak Tracking Total 10 | . 10 2 5 7 Tactical Retreats 5 | . 1 . 2 2 Traps | -11 -10 -10 -9 -8 ------- Run | Yrd Mat Min Mat Mat Traps Triggered 2 | . 1 . . 1 Indirectly . | . . . . . Trap Hack Attempts . | . . . . . Triggered . | . . . . . Disarmed . | . . . . . Reprogrammed . | . . . . . Reused . | . . . . . Traps Extracted . | . . . . . Installed . | . . . . . Triggered . | . . . . . Machines | -11 -10 -10 -9 -8 ---------- Run | Yrd Mat Min Mat Mat Machines Disabled . | . . . . . Max in Single Turn . | . . . . . Machines Repaired . | . . . . . Machines Dismantled . | . . . . . Machines Sabotaged . | . . . . . Overloaded Fab Kills . | . . . . . Hacking | -11 -10 -10 -9 -8 --------- Run | Yrd Mat Min Mat Mat Machines Accessed 2 | . 1 . 1 . Terminals 2 | . 1 . 1 . Fabricators . | . . . . . Repair Stations . | . . . . . Recycling Units . | . . . . . Scanalyzers . | . . . . . Garrison Access . | . . . . . Total Hacks 4 | . 3 . 1 . Successful 3 | . 2 . 1 . Failed 1 | . 1 . . . Catastrophic . | . . . . . Database Lockouts . | . . . . . Manual . | . . . . . Terminals 4 | . 3 . 1 . Fabricators . | . . . . . Repair Stations . | . . . . . Recycling Units . | . . . . . Scanalyzers . | . . . . . Garrison Access . | . . . . . Terminal Hacks 3 | . 2 . 1 . Branch Access Points 1 | . . . 1 . Alert Level 1 | . 1 . . . Transport Status 1 | . 1 . . . Fabricator Hacks . | . . . . . Repair Station Hacks . | . . . . . Recycling Unit Hacks . | . . . . . Scanalyzer . | . . . . . Garrison Access Hacks . | . . . . . Unauthorized Hacks . | . . . . . Terminals . | . . . . . Fabricators . | . . . . . Repair Stations . | . . . . . Recycling Units . | . . . . . Scanalyzers . | . . . . . Garrison Access . | . . . . . Data Cores Recovered . | . . . . . Used . | . . . . . Hacking Detections 2 | . 1 . 1 . Full Trace Events . | . . . . . Feedback Events . | . . . . . Feedback Blocked . | . . . . . Robot Schematics Acquired . | . . . . . Robots Built . | . . . . . Authchips . | . . . . . Time . | . . . . . Total Robot Build Rating . | . . . . . Part Schematics Acquired . | . . . . . Parts Built . | . . . . . Authchips . | . . . . . Time . | . . . . . Total Part Build Rating . | . . . . . Parts Repaired . | . . . . . Time . | . . . . . Parts Recycled . | . . . . . Recycled Matter . | . . . . . Retrieved Matter . | . . . . . Retrieved Components . | . . . . . Parts Scanalyzed . | . . . . . Part Schematics Acquired . | . . . . . Parts Damaged . | . . . . . Bothacking | -11 -10 -10 -9 -8 ------------ Run | Yrd Mat Min Mat Mat Used RIF Installer . | . . . . . Robots Hacked . | . . . . . Non-combat . | . . . . . Combat . | . . . . . Robot Hacks Applied . | . . . . . Relay Couplers Released . | . . . . . Fabnet Peak Effective % . | . . . . . Robots Rewired . | . . . . . Allies Hacked . | . . . . . Hacks Repelled . | . . . . . Allies | -11 -10 -10 -9 -8 -------- Run | Yrd Mat Min Mat Mat Total Allies 1 | . . 1 . . Largest Group 1 | . . 1 1 . Highest-Rated Group 31 | . . 31 31 . Highest-Rated Ally 31 | . . 31 31 . Total Orders . | . . . . . Ally Attacks 2 | . . . 2 . Total Damage 40 | . . . 40 . Kills . | . . . . . Allies Corrupted . | . . . . . Allies Melted . | . . . . . Intel | -11 -10 -10 -9 -8 ------- Run | Yrd Mat Min Mat Mat Active Infowar (turns) 1041 | . 100 584 194 163 ECM 1041 | . 100 584 194 163 Robot Analysis Total . | . . . . . Derelict Logs Recovered 1 | . . 1 . . Drone Launches . | . . . . . Drone Recoveries . | . . . . . Exploration | -11 -10 -10 -9 -8 ------------- Run | Yrd Mat Min Mat Mat Turns Passed 1405 | 88 217 584 194 322 Spaces Moved 1055 | 67 159 401 150 278 Core 195 | 14 . . . 181 Treads . | . . . . . Legs 860 | 53 159 401 150 97 Wheels . | . . . . . Hover . | . . . . . Flight . | . . . . . Fastest Speed 50 | 50 120 120 120 50 Average Speed 110 | 115 120 120 120 84 Slowest Speed 200 | 200 120 190 120 200 Overloaded Moves . | . . . . . Propulsion Burnouts . | . . . . . Robots Hopped . | . . . . . Potential Cave-ins 1 | . . . . 1 Cave-ins Triggered . | . . . . . Exploration Rate (%) 32 | 5 33 81 19 26 Regions Visited 4 Branch Regions 1 Pre-discovered Areas . | . . . . . Known Exits Taken . | . . . . . Unknown Exits Taken 4 | 1 1 1 1 . Scrap Searched . | . . . . . Spaces Dug . | . . . . . Terrain Destroyed 33 | . . . . 33 Melee . | . . . . . Projectile . | . . . . . AOE 33 | . . . . 33 Terrain Rammed . | . . . . . Walls Destroyed . | . . . . . Machines Disabled . | . . . . . Actions | -11 -10 -10 -9 -8 --------- Run | Yrd Mat Min Mat Mat Total 1176 | 74 171 446 157 328 Wait . | . . . . . Move 1051 | 66 158 400 149 278 Hop . | . . . . . Pick Up 11 | 2 2 4 1 2 Fast Attach 10 | 6 1 2 1 . Attach 9 | . . 3 2 4 Detach . | . . . . . Swap 2 | . . 2 . . Drop . | . . . . . Fire 63 | . 7 35 4 17 Melee . | . . . . . Ram 27 | . . . . 27 Kick 3 | . 3 . . . Crush . | . . . . . Escape Stasis . | . . . . . Rewire . | . . . . . Trap . | . . . . . Miscellaneous . | . . . . . Route ------- -11/Scrapyard -10/Materials -10/Mines -9/Materials (discovered 4 exits: [*Mat] / Min x2 / Sto) -8/Materials History --------- Turn | Location | Event 31 | -11/Scrapyard | Discovered new exit (range 15) 89 | -11/Scrapyard | Entered Materials 290 | -10/Materials | Discovered new exit (range 11) 303 | -10/Materials | Build established: Mutant 306 | -10/Materials | Entered Mines 307 | -10/Mines | Assembled infested the area 425 | -10/Mines | Found a Scrap Suit stashed away for nefarious purposes 433 | -10/Mines | Found Scrap Suit 580 | -10/Mines | Core integrity fell below 50% 620 | -10/Mines | Lost 3 parts (1p1n1w) 670 | -10/Mines | Received a Rocket Launcher from a helpful Derelict 721 | -10/Mines | Received a Mining Laser from a helpful Derelict 819 | -10/Mines | Learned Materials emergency access door positions 883 | -10/Mines | Discovered new exit (range 6) 890 | -10/Mines | Entered Materials 890 | -9/Materials | Accompanied by 1 ally 890 | -9/Materials | Evolved 2 slots: Propulsion x1, Utility x1 951 | -9/Materials | Identified exit to Mines 951 | -9/Materials | Identified exit to Storage 1063 | -9/Materials | Discovered new exit (range 13) 1084 | -9/Materials | Entered another Materials area 1084 | -8/Materials | Evolved 2 slots: Power x1, Propulsion x1 1201 | -8/Materials | Build established: Scavenger-Mutant 1305 | -8/Materials | Core integrity fell below 50% 1316 | -8/Materials | Lost 10 parts (2p2n2u4w) 1372 | -8/Materials | Core integrity fell below 20% 1406 | -8/Materials | Destroyed by Y-45 Defender with Beam Rifle Last Messages --------------- 01329_ Destabilizing: Core damaged (-16). 01330_ The unstable cave ceiling collapses. 01330_ 2 Matter crushed. 01330_ Slammed into G-47 Trooper. 01330_ Destabilizing: Core damaged (-16). 01331_ Slammed into G-47 Trooper. 01337_ U-05 Engineer lays Concrete. 01338_ System corrupted: Heat flow error (+229). 01340_ R-06 Scavenger collects Aluminum Leg. 01347_ K-01 Serf collects debris. 01351_ Triggered Alarm Trap. 01351_ An alarm sounds. 01351_ ALERT: Alarm triggered, dispatching investigation squad. 01355_ U-05 Engineer lays Concrete. 01358_ W-25 Informer distress signal alerts nearby ally. 01361_ U-05 Engineer lays Concrete. 01380_ Slammed into Y-45 Defender. 01402_ System corrupted: Matter fused (-10). Map ----- +----------------------------------------------------+ | ??????????????????????????????# | | ??????????????????????????????# | | ??????????????????????????????# | | ??????????????????????????????# | | ??????????????????????????????# | | ??????????????????????????????# | | ??????????????????????????????# | | ??????????????????????????????# ! | | ??????????????????????????????# | | ??????????????? ? ????????????# | | ??????????????# ""????????????# | | ??????????????# """???????????# | | ???????????#### """???????????# | | ??????????? # ??????????# //[ | | ??????????? # """ ?########## /[[ | | ??????????? # """ # /[ | | ??????????? # """ # ############# | | ???????????" # + + #? | | ???????????" ######## # """ """ !#? | | ?????????###+## ### # "G" ""????? | | ?????????# r + " " ""????? | | ?????????# # =?? | | ???????#####Y## % ### ##??#########? | | ???????#! ##+#####+#####????????? | | ???????# [ !# #????????? | | ???????# @ # #????????? | | ???????# !!! # #????????? | | ???????#! !!! + #????????? | | ???????# !!! # #????????? | | ???????#####################????????? | | | | | | | | | | | | | | | | | | | | | | | | | | | | | | | | | | | | | | | | | +----------------------------------------------------+ Best States ------------- Heat Dissipation 41 Energy Generation 15 Energy Capacity 400 Matter Stores 300 Matter Capacity 300 Sight Range 16 Terrain Scan Density 10 ECM Strength 1 Resistance: KI 20 Resistance: TH 20 Resistance: EX 20 Resistance: EM 20 Resistance: I 20 Resistance: S 20 Resistance: P 20 Evasion (%) 55 Offensive Hacking 10 Item Schematics ----------------- None Robot Schematics ------------------ None Fabricated ------------ Nothing Repaired ---------- Nothing Alien Tech Used ----------------- None Achievements -------------- None Challenges ------------ None Game ------ Seed RelayThermoelectricWartreads Manual? 0 Play Time 00:15:05 Cumulative 42.6 hours Start 2025.06.19 @ 00:35:49 End 2025.06.19 @ 01:00:58 Sessions 1 Manual Loads 0 Difficulty Adventurer Special Mode None Game No. 95 Rogue 0 Adventurer 34 Explorer 61 Win Type - Total 0 Types 0/0/0/0/0/0/0/0/0/0 Lore% 4 Gallery% 24 Achievement% 25 Wizard Run 0 Options --------- Layout 1 ASCII 0 Keyboard 1 Movement Arrows Keybinds 0 Fullscreen 1 Font 16/SmallcapsGlow Map View 55x38 Zoom Use 0% Tactical HUD 1 Map Filters NONE Filters NONE Steam 1 RUN: 0ee14c49-596f-4bb9-9b83-a8f6c745cc5c